bitfinex/quotes_ETHUSD_20220119
["timestamp","ask_amount","ask_price","bid_price","bid_amount"]
[1642575092346,1.60797,3111.4,3111.3,0.00341054]
[1642575092747,1.60797,3111.4,3110.8,2.73916244]
[1642575092948,1.60797,3111.4,3110.9,2.73859402]
[1642575092949,2.41195,3111.4,3110.9,2.73859402]
[1642575093146,2.41195,3111.4,3111.0,2.73290978]
[1642575093347,2.41195,3111.4,3111.0,2.73802559]
[1642575093546,2.41195,3111.4,3111.1,2.73745717]
[1642575093749,2.41195,3111.4,3111.1,0.00454739]
[1642575094095,2.41195,3111.4,3111.0,0.00511581]
[1642575094296,2.41195,3111.4,3111.1,2.73298896]
[1642575094297,0.80398,3111.3,3111.1,2.73298896]
[1642575094697,0.80398,3111.3,3111.2,0.00397897]
[1642575094901,1.95498,3111.3,3111.2,0.00397897]
[1642575095101,1.36027253,3111.0,3110.1,0.01023163]
[1642575095301,0.80415,3110.9,3110.2,2.73321866]
[1642575095502,0.80415,3110.7,3110.2,2.73321866]
[1642575095699,0.80415,3110.7,3110.3,0.00909478]
[1642575095700,0.50745,3110.7,3110.3,0.00909478]
[1642575095901,0.50745,3110.7,3110.4,2.73321866]
[1642575096302,0.50745,3110.7,3110.5,0.00795793]
[1642575096501,0.50745,3110.7,3110.6,3.03321866]
[1642575096901,0.50745,3110.7,3110.6,3.04060817]
[1642575097106,1.3116,3110.7,3110.6,3.04060817]
[1642575097503,0.50745,3110.7,3110.6,3.04060817]
[1642575097705,0.80403,3110.9,3110.6,3.04060817]
[1642575097981,0.80403,3110.9,3110.7,2.74003974]
[1642575098177,0.80403,3110.9,3110.8,2.73321866]
[1642575098376,0.80403,3110.9,3110.8,2.73947132]
[1642575099579,0.80403,3110.9,3110.8,3.03947132]
[1642575100378,0.80403,3110.9,3110.8,2.73947132]
[1642575100580,0.80398,3111.1,3110.8,2.73947132]
[1642575100781,0.50938,3111.1,3110.9,2.73321866]
[1642575101083,0.50938,3111.1,3111.0,0.00511581]
[1642575101697,0.50938,3111.1,3110.2,0.0096632]
[1642575101899,0.50938,3111.1,3110.3,2.7421183]
[1642575102097,0.50938,3111.1,3110.4,2.73302352]
[1642575102302,0.50938,3111.1,3110.4,2.74154987]
[1642575102498,0.50938,3111.1,3110.5,2.74098145]
[1642575102699,0.50938,3111.1,3110.6,2.73302352]
[1642575103000,0.50938,3111.1,3110.7,0.00682108]
[1642575103001,0.80415,3110.9,3110.7,0.00682108]
[1642575103202,1.84595,3110.9,3110.7,0.00682108]
[1642575103601,1.84595,3110.9,3110.0,0.01080005]
[1642575103998,1.84595,3110.9,3110.1,3.28020683]
[1642575104204,2.6501,3110.9,3110.2,2.73342213]
[1642575104398,1.60849,3110.7,3110.2,2.74308533]
[1642575104598,1.60849,3110.7,3110.3,2.74251691]
[1642575104808,1.60849,3110.7,3110.4,2.73342213]
[1642575105001,1.60849,3110.7,3110.4,2.74194848]
[1642575105350,1.60849,3110.7,3110.5,0.00795793]
[1642575105754,1.60849,3110.7,3109.8,0.0119369]
[1642575105755,0.80433,3110.5,3109.8,0.0119369]
[1642575105961,0.50613,3110.5,3109.9,2.73364546]
[1642575106159,0.50613,3110.5,3109.5,0.01364217]
[1642575106160,1.2684,3110.4,3109.5,0.01364217]
[1642575106358,1.05637,3110.2,3110.0,0.01080005]
[1642575106553,42.0,3110.0,3109.3,0.01477901]
[1642575106754,42.0,3110.0,3109.7,0.01250532]
[1642575106755,0.464,3110.0,3109.7,0.01250532]
[1642575106954,0.80447,3109.9,3109.3,0.01477901]
[1642575107254,2.41335,3109.9,3109.4,2.73411587]
[1642575107458,2.41335,3109.9,3108.9,0.01705271]
[1642575107459,1.60888,3109.9,3108.9,0.01705271]
[1642575107653,0.80444,3109.9,3109.5,0.01364217]
[1642575107853,1.6089685,3109.9,3108.9,0.01705271]
[1642575108053,0.8045285,3109.9,3109.1,0.01591586]
[1642575108255,1.60912,3109.5,3108.9,0.01705271]
[1642575108457,3.00262,3109.5,3109.1,0.01591586]
[1642575108657,3.00262,3109.5,3108.8,0.01762113]
[1642575108854,3.00262,3109.5,3109.1,0.01591586]
[1642575109099,3.00262,3109.5,3108.8,0.01762113]
[1642575109100,0.8046441,3109.4,3108.8,0.01762113]
[1642575109301,3.21855,3109.4,3109.0,0.01648428]
[1642575109500,3.21855,3109.4,3108.4,0.01989482]
[1642575109702,0.80463,3109.1,3109.0,0.01648428]
[1642575109901,0.80463,3109.1,3108.4,0.01989482]
[1642575110107,0.80463,3109.1,3108.6,0.01875798]
[1642575110302,0.80463,3109.1,3108.4,0.01989482]
[1642575110501,0.80463,3109.1,3108.6,0.01875798]
[1642575110702,1.60933,3108.9,3108.4,0.01989482]
[1642575110904,0.80474,3108.8,3108.6,0.01875798]
[1642575111105,1.34674,3108.8,3107.8,0.02330537]
[1642575111303,1.34674,3108.8,3107.9,2.73479604]
[1642575111704,1.34674,3108.8,3108.2,1.5066843]
[1642575111903,1.34674,3108.8,3108.3,2.73479604]
[1642575112103,0.50644,3108.8,3108.4,2.73479604]
[1642575112304,1.60949,3108.7,3108.4,2.75469086]
[1642575112505,2.39869,3108.7,3108.5,0.0193264]
[1642575112865,0.80473,3108.6,3108.0,0.02216852]
[1642575113053,2.39869,3108.7,3108.1,2.73495846]
[1642575113455,2.39869,3108.7,3108.2,2.75599013]
[1642575113653,2.39869,3108.7,3108.2,0.02103167]
[1642575113853,2.39869,3108.7,3108.3,0.02046325]
[1642575114055,2.39869,3108.7,3108.4,2.73471052]
[1642575114254,2.39869,3108.7,3108.0,0.02216852]
[1642575114555,4.00821,3108.7,3108.1,2.73472484]
[1642575114754,1.60933,3108.6,3108.1,2.73472484]
[1642575114955,1.60933,3108.6,3108.2,0.02103167]
[1642575115156,1.60933,3108.6,3108.3,2.73475535]
[1642575115359,1.60933,3108.6,3108.2,0.02103167]
[1642575115556,1.60933,3108.6,3108.4,0.01989482]
[1642575115756,1.60933,3108.6,3108.0,0.02216852]
[1642575115963,0.8048,3108.3,3107.1,1.63326074]
[1642575116163,0.8048,3108.3,3107.2,2.73535352]
[1642575116164,0.17,3108.2,3107.2,2.73535352]
[1642575116459,0.17,3108.2,3107.3,2.73535352]
[1642575116896,0.17,3108.2,3107.4,0.00341054]
[1642575117098,0.80489,3108.0,3107.4,0.00341054]
[1642575117299,0.464,3107.9,3107.4,0.00341054]
[1642575117499,1.411,3107.9,3107.4,0.00341054]
[1642575117699,1.411,3107.9,3106.8,2.74267675]
[1642575117902,1.411,3107.9,3106.9,2.74210833]
[1642575118097,1.411,3107.9,3107.0,2.73585567]
[1642575118298,1.411,3107.9,3107.0,2.7415399]
[1642575118603,0.464,3107.9,3107.1,5.82783575]
[1642575118801,2.41670528,3108.2,3107.2,2.73573534]
[1642575119003,2.41670528,3108.2,3107.2,3.03573534]
[1642575119203,2.41670528,3108.2,3107.3,2.7397143]
[1642575119405,2.41670528,3108.2,3107.4,2.73573534]
[1642575119605,0.80483,3108.0,3107.4,2.73914588]
[1642575119807,1.60986,3107.9,3107.5,0.00284212]
[1642575120462,1.60986,3107.9,3107.3,0.00397896]
[1642575120658,0.8049,3107.8,3107.3,0.00397896]
[1642575121260,0.80509,3107.7,3107.1,0.00511581]
[1642575121660,0.80509,3107.5,3106.7,0.0073895]
[1642575121860,0.464,3107.4,3106.8,2.73613776]
[1642575122162,1.1595,3107.4,3106.9,0.00625266]
[1642575122560,1.96465,3107.4,3106.5,0.00852635]
[1642575122860,1.61037,3107.3,3106.6,2.73632888]
[1642575123260,1.61037,3107.3,3106.7,0.0073895]
[1642575123661,0.80522,3107.2,3106.5,0.00852635]
[1642575123964,0.80522,3107.0,3106.5,0.00852635]
[1642575124204,0.80522,3107.0,3106.6,2.73632352]
[1642575124406,0.80522,3107.0,3106.5,0.00852635]
[1642575124606,0.80522,3107.0,3106.7,0.0073895]
[1642575124807,1.26922,3107.0,3106.4,0.00909477]
[1642575125005,1.26922,3107.0,3106.5,2.73654391]
[1642575125204,0.80523,3106.8,3106.0,0.01136847]
[1642575125406,2.41565,3106.8,3106.6,0.00795793]
[1642575125610,0.464,3107.0,3106.8,1.96261904]
[1642575126006,0.464,3107.0,3106.9,0.00625266]
[1642575126305,0.166,3107.0,3106.9,0.00625266]
[1642575126505,41.99374734,3106.9,3106.8,1.96261904]
[1642575126705,0.166,3107.0,3106.8,1.96261904]
[1642575127512,0.97123,3107.0,3106.8,1.96261904]
[1642575127708,2.58169,3107.0,3106.8,1.96261904]
[1642575128864,5.10425233,3107.0,3106.8,1.96261904]
[1642575130369,0.80531,3106.7,3105.8,4.2132]
[1642575130668,0.80532,3106.4,3105.9,2.74236915]
[1642575130871,0.80532,3106.4,3106.0,2.73668492]
[1642575131069,0.80532,3106.4,3106.0,2.74180073]
[1642575131269,0.80532,3106.4,3106.1,2.7412323]
[1642575131472,0.51232,3106.4,3106.2,2.73668492]
[1642575131723,0.51232,3106.4,3106.2,0.00397896]
[1642575131911,0.51232,3106.4,3106.3,0.00341054]
[1642575132111,0.51232,3106.4,3106.2,0.00397896]
[1642575133221,0.80533,3106.3,3105.7,0.00682108]
[1642575133422,0.80533,3106.3,3105.8,2.73676612]
[1642575133619,0.80534,3106.2,3105.9,2.73676612]
[1642575133819,0.80534,3106.2,3106.0,2.73676612]
[1642575134019,0.80534,3106.2,3106.1,2.73676612]
[1642575134219,0.80534,3106.2,3106.1,2.7413135]
[1642575134618,0.80533,3106.3,3106.2,1.61067999]
[1642575134819,0.80533,3106.3,3106.2,4.34744611]
[1642575135021,0.80533,3106.3,3106.2,4.35142507]
[1642575135452,0.8053,3106.3,3106.2,1.61465895]
[1642575135652,0.8053,3106.3,3106.2,4.35149867]
[1642575135852,0.8053,3106.3,3106.2,1.61465895]
[1642575136452,0.5127,3106.3,3106.2,1.61465895]
[1642575137956,3.3627,3106.3,3106.2,1.61465895]
[1642575138355,1.61102,3106.0,3105.6,0.00698159]
[1642575138559,1.61102,3106.0,3105.7,2.73711209]
[1642575138756,1.61102,3106.0,3105.7,2.73995421]
[1642575139398,2.41653,3106.0,3105.7,2.73995421]
[1642575139798,2.41653,3106.0,3105.7,2.7469316]
[1642575139999,2.41653,3106.0,3105.8,2.73711209]
[1642575140399,2.41653,3106.0,3105.9,0.00170527]
[1642575140799,5.2971,3106.1,3105.9,0.00170527]
[1642575140800,3.33416347,3106.1,3105.9,0.00170527]
[1642575141402,0.80551,3106.0,3105.9,0.00170527]
[1642575141603,2.12213,3106.0,3105.8,2.73951163]
[1642575141803,2.12213,3106.0,3105.9,0.00170527]
[1642575142957,4.31102,3106.0,3105.9,0.00170527]
[1642575143362,4.31102,3106.0,3105.8,0.00227369]
[1642575143562,1.61102,3106.0,3105.8,2.73956424]
[1642575143766,2.41652,3106.0,3105.8,0.00227369]
[1642575143962,2.41652,3106.0,3105.9,0.00170527]
[1642575144161,2.41652,3106.0,3105.8,0.00227369]
[1642575144664,2.41652,3106.0,3105.8,2.73965409]
[1642575144862,2.41652,3106.0,3105.8,0.00227369]
[1642575145063,2.41652,3106.0,3105.9,0.00170527]
[1642575145265,2.41652,3106.0,3105.7,0.00697739]
[1642575145266,2.41652,3106.0,3105.8,0.00227369]
[1642575145661,1.61101,3106.0,3105.8,0.00227369]
[1642575146797,1.31281,3106.0,3105.8,0.00227369]
[1642575147397,1.31281,3106.0,3105.8,2.73970327]
[1642575147600,1.31281,3106.0,3105.8,0.00227369]
[1642575147797,1.31281,3106.0,3105.9,0.00170527]
[1642575148098,1.31281,3106.0,3105.8,2.73967258]
[1642575148499,1.31281,3106.0,3105.9,0.00170527]
[1642575149301,0.80551,3106.0,3105.9,0.00170527]
[1642575150000,0.80551,3106.0,3105.9,2.73910416]
[1642575151852,0.51081,3106.0,3105.9,2.73910416]
[1642575157011,0.21241,3106.0,3105.9,2.73910416]
[1642575161375,0.80525,3106.2,3105.9,2.73910416]
[1642575161602,4.30525,3106.2,3105.9,2.73910416]
[1642575161804,4.30525,3106.2,3106.0,0.00113685]
[1642575162001,0.80525,3106.2,3106.0,0.00113685]
[1642575162202,0.50495,3106.2,3106.0,0.00113685]
[1642575164908,0.50495,3106.2,3106.1,0.00696399]
[1642575165355,0.50495,3106.2,3106.1,2.74436288]
[1642575167362,0.20625,3106.2,3106.1,2.74436288]
[1642575169801,0.20625,3106.2,3106.1,2.73739889]
[1642575172003,7.20625,3106.2,3106.1,2.73739889]
[1642575172602,3.40185,3106.2,3106.1,2.73739889]
[1642575174653,6.90185,3106.2,3106.1,2.73739889]
[1642575175753,7.75265,3106.2,3106.1,2.73739889]
[1642575176627,1.32576704,3105.5,3105.2,6.55696074]
[1642575176815,1.32576704,3105.5,3105.2,1.1518]
[1642575176816,0.80546,3105.4,3105.2,1.1518]
[1642575177011,0.80546,3105.4,3105.3,0.00397896]
[1642575177214,4.30546,3105.4,3105.3,0.00397896]
[1642575177418,4.30546,3105.4,3105.1,0.00511581]
[1642575177814,0.80564,3105.2,3104.6,0.00795793]
[1642575178016,0.80564,3105.1,3104.6,0.00795793]
[1642575178614,0.80564,3105.1,3104.7,0.54772605]
[1642575179019,0.80564,3105.1,3104.8,0.00682108]
[1642575179714,0.80565,3104.9,3104.8,0.00682108]
[1642575180351,0.80565,3104.9,3104.7,0.0073895]
[1642575180553,0.80565,3104.9,3104.6,0.00795793]
[1642575180856,0.80565,3104.9,3104.3,0.0096632]
[1642575181257,4.30582,3104.8,3104.2,0.01023162]
[1642575181454,0.80582,3104.7,3104.2,0.01023162]
[1642575181653,0.80582,3104.6,3104.2,0.01023162]
[1642575182563,0.80582,3104.6,3104.0,0.01136847]
[1642575182564,2.41754,3104.5,3104.0,0.01136847]
[1642575182956,1.31302,3104.5,3103.8,2.01250531]
[1642575183155,1.31302,3104.5,3103.9,0.01193689]
[1642575183554,1.31302,3104.5,3103.8,0.01250531]
[1642575183755,1.31302,3104.5,3104.0,0.5478104]
[1642575184197,1.31302,3104.5,3104.1,0.01080004]
[1642575184600,0.464,3104.7,3104.1,0.01080004]
[1642575184798,4.6507,3104.8,3104.1,0.01080004]
[1642575184998,0.00676512,3104.5,3104.1,0.01080004]
[1642575185205,3.50676512,3104.5,3104.1,0.01080004]
[1642575185600,3.50676512,3104.5,3104.0,0.01136847]
[1642575185804,3.50676512,3104.5,3104.0,1.84028607]
[1642575186001,3.50676512,3104.5,3104.0,0.01136847]
[1642575186201,3.50676512,3104.5,3104.1,0.55858651]
[1642575186403,3.50676512,3104.5,3104.1,0.54778647]
[1642575186603,0.80571,3104.4,3104.2,0.01023162]
[1642575187862,0.80571,3104.4,3103.9,0.01193689]
[1642575188049,0.51471,3104.4,3103.9,0.01193689]
[1642575188850,0.51471,3104.4,3103.8,0.01250531]
[1642575189954,0.51471,3104.4,3103.8,1.64576605]
[1642575190153,0.51471,3104.4,3103.9,1.85359842]
[1642575190358,0.51471,3104.4,3103.9,1.86553531]
[1642575190556,0.51471,3104.4,3104.0,0.01136847]
[1642575191602,0.00676512,3104.5,3104.1,1.17553048]
[1642575191802,0.00676512,3104.5,3104.2,2.36398085]
[1642575192006,0.00676512,3104.5,3104.2,2.37421247]
[1642575192205,0.00676512,3104.5,3104.3,0.07379823]
[1642575192404,0.00676512,3104.5,3104.3,0.0096632]
[1642575192605,0.00676512,3104.5,3104.4,0.00909477]
[1642575192805,0.00676512,3104.5,3104.3,0.0096632]
[1642575193008,0.80557,3104.9,3104.3,0.0096632]
[1642575193407,1.61111,3105.3,3104.3,0.8151412]
[1642575193608,3.5,3105.6,3104.6,1.12880868]
[1642575193810,3.5,3105.6,3104.7,2.16284074]
[1642575193811,0.80546,3105.4,3104.7,2.16284074]
[1642575194111,3.5,3105.6,3104.7,2.47023024]
[1642575194309,3.5,3105.6,3104.8,0.00682108]
[1642575194910,1.61326751,3105.5,3104.8,0.81226848]
[1642575195110,1.61326751,3105.5,3104.9,2.36999282]
[1642575195359,1.61326751,3105.5,3104.9,2.37624548]
[1642575195554,1.61326751,3105.5,3105.0,0.00568423]
[1642575195952,1.61326751,3105.5,3105.0,0.81106653]
[1642575196152,1.61326751,3105.5,3105.1,1.92698892]
[1642575196355,1.61326751,3105.5,3105.1,0.00511581]
[1642575196553,1.61326751,3105.5,3105.2,0.00454739]
[1642575196752,1.61326751,3105.5,3105.1,0.00511581]
[1642575196952,1.61326751,3105.5,3105.2,2.7377065]
[1642575197353,1.61326751,3105.5,3105.3,1.82719186]
[1642575197558,1.61326751,3105.5,3105.1,0.00511581]
[1642575197754,1.61326751,3105.5,3105.4,3.90341054]
[1642575197954,1.61326751,3105.5,3105.4,8.7119678]
[1642575198161,0.00113685,3106.2,3105.4,6.64100112]
[1642575198354,0.00113685,3106.2,3105.7,0.8052226]
[1642575198755,0.00113685,3106.2,3105.8,0.00113684]
[1642575198954,0.00113685,3106.2,3105.8,1.82276693]
[1642575199404,0.00113685,3106.2,3105.8,2.62791863]
[1642575199802,0.00113685,3106.2,3105.9,0.3]
[1642575199803,1.61295526,3106.1,3105.9,0.3]
[1642575200002,0.00113685,3106.2,3105.9,0.3]
[1642575200405,0.80529,3106.1,3105.8,0.30113684]
[1642575200607,0.80529,3106.1,3105.8,0.00113684]
[1642575201006,0.00113685,3106.2,3105.8,0.00113684]
[1642575202008,0.00113685,3106.2,3105.8,0.30113684]
[1642575202860,0.80527,3106.1,3105.8,0.30113684]
[1642575203049,0.80527,3106.1,3105.8,0.00113684]
[1642575203352,0.50637,3106.1,3105.8,0.00113684]
[1642575203553,0.00113685,3106.2,3105.8,0.00113684]
[1642575204154,0.80639685,3106.2,3105.8,0.30113684]
[1642575204755,0.00113685,3106.2,3105.8,0.30113684]
[1642575205158,0.80639685,3106.2,3105.8,0.30113684]
[1642575205357,0.80639685,3106.2,3105.8,0.00113684]
[1642575205756,0.80639685,3106.2,3105.7,0.00170527]
[1642575205959,0.80639685,3106.2,3105.8,0.00113684]
[1642575206158,0.80639685,3106.2,3105.7,0.80698467]
[1642575206357,0.80639685,3106.2,3105.8,0.00113684]
[1642575206807,0.80526,3106.2,3105.8,0.00113684]
[1642575207008,0.80526,3106.2,3105.8,0.30113684]
[1642575207608,2.41816323,3106.2,3105.8,0.30113684]
[1642575208412,2.12126323,3106.2,3105.8,0.30113684]
[1642575208616,2.12126323,3106.2,3105.8,0.00113684]
[1642575213559,1.82326323,3106.2,3105.8,0.00113684]
[1642575218055,1.82326323,3106.2,3105.7,2.7390597]
[1642575218255,1.82326323,3106.2,3105.8,0.00113684]
[1642575218656,1.52846323,3106.2,3105.8,0.00113684]
[1642575219657,2.33372323,3106.2,3105.8,0.00113684]
[1642575221160,2.33372323,3106.2,3105.8,3.1524885]
[1642575221365,2.33372323,3106.2,3105.9,2.73735443]
[1642575221366,1.52846323,3106.2,3105.9,2.73735443]
[1642575221617,1.52846323,3106.2,3106.0,2.11113306]
[1642575221810,1.52846323,3106.2,3106.1,9.68735443]
[1642575222013,4.056905,3107.1,3106.2,0.0692486]
[1642575222212,4.056905,3107.1,3106.2,2.0692486]
[1642575222414,0.00568424,3107.0,3106.2,2.3]
[1642575222611,0.00568424,3107.0,3106.3,1.33519696]
[1642575222811,0.00511581,3106.9,3106.4,0.8049797]
[1642575223222,0.00454739,3106.8,3106.5,0.3]
[1642575223515,0.00397897,3106.7,3106.2,0.3]
[1642575223712,0.00397897,3106.7,3105.9,1.165]
[1642575223913,0.166005,3107.1,3106.0,3.45]
[1642575224117,0.464,3107.0,3106.0,0.00341054]
[1642575224312,0.4662737,3107.0,3106.1,0.00284211]
[1642575224612,0.4662737,3107.0,3106.0,0.00341054]
[1642575224813,1.41650239,3106.3,3106.0,0.00341054]
[1642575225013,1.41650239,3106.3,3105.8,0.00454738]
[1642575225014,0.80538,3106.2,3105.8,0.00454738]
[1642575225214,1.61075,3106.2,3105.8,0.00454738]
[1642575225661,1.61075,3106.2,3105.7,0.00511581]
[1642575225866,1.61295526,3106.1,3105.7,0.00511581]
[1642575226064,0.80548,3106.0,3105.7,0.00511581]
[1642575226262,0.80548,3106.0,3105.3,0.0073895]
[1642575226462,0.80557,3105.9,3105.3,0.0073895]
[1642575226665,0.80557,3105.9,3104.9,0.0096632]
[1642575226862,0.80557,3105.9,3105.0,2.73785072]
[1642575227265,1.6132149,3105.6,3105.1,0.00852635]
[1642575227463,0.80558,3105.5,3105.2,2.73785072]
[1642575227662,2.74796,3105.5,3105.2,2.73785072]
[1642575227864,2.74796,3105.5,3105.3,0.0073895]
[1642575228565,2.74796,3105.5,3104.9,0.0096632]
[1642575228767,0.80559,3105.4,3105.0,2.7379225]
[1642575228966,1.31088643,3105.3,3105.0,2.7379225]
[1642575229214,1.61115,3105.3,3105.1,0.00852635]
[1642575229808,1.61115,3105.3,3104.4,0.01250531]
[1642575230007,1.61115,3105.3,3104.5,2.7381951]
[1642575230211,2.11947565,3105.2,3104.6,2.7381951]
[1642575230510,2.11947565,3105.2,3104.7,2.74899514]
[1642575230708,2.92503565,3105.2,3104.8,2.7381951]
[1642575230909,4.27111693,3105.2,3104.8,2.74842672]
[1642575231108,2.15164128,3105.2,3104.9,2.7478583]
[1642575231310,2.15164128,3105.2,3105.0,2.7381951]
[1642575231311,1.61121,3105.2,3105.0,2.7381951]
[1642575231512,1.61121,3105.2,3105.0,2.74728987]
[1642575231713,1.61121,3105.2,3105.1,0.00852635]
[1642575232109,3.5809386,3105.2,3104.3,2.75116665]
[1642575232310,0.80561,3105.0,3104.4,2.73809291]
[1642575232509,0.80561,3105.0,3104.4,3.05059822]
[1642575232709,0.80561,3105.0,3104.5,2.7500298]
[1642575232955,0.80561,3105.0,3104.6,2.73809291]
[1642575233156,0.80561,3105.0,3104.6,2.74946138]
[1642575233354,0.80561,3105.0,3104.7,2.74889295]
[1642575233556,0.80561,3105.0,3104.8,2.73809291]
[1642575233763,0.80561,3105.0,3104.8,2.74832453]
[1642575233960,0.80561,3105.0,3104.9,2.74775611]
[1642575234164,0.50501,3105.0,3104.9,2.74775611]
[1642575239311,0.20691,3105.0,3104.9,2.74775611]
[1642575244408,1.52406,3105.1,3104.9,2.74775611]
[1642575244713,1.52406,3105.1,3105.0,2.74718768]
[1642575245107,1.52406,3105.1,3105.0,0.00909477]
[1642575245511,1.52406,3105.1,3104.2,0.01364216]
[1642575245711,1.52406,3105.1,3104.3,2.7382588]
[1642575246113,1.52406,3105.1,3104.4,0.01250531]
[1642575246313,1.52406,3105.1,3104.5,2.7382588]
[1642575246514,2.41664,3105.4,3104.5,2.7382588]
[1642575246714,2.41664,3105.4,3104.6,0.01136847]
[1642575247015,2.41664,3105.4,3104.7,2.7382588]
[1642575247415,2.41664,3105.4,3104.8,0.01023162]
[1642575247618,0.80551,3105.2,3104.9,2.7382588]
[1642575248057,0.80551,3105.2,3105.0,0.00909477]
[1642575248658,0.80551,3105.2,3104.5,0.01193689]
[1642575248857,0.80551,3105.2,3104.6,2.73812826]
[1642575249258,0.80551,3105.2,3104.7,0.01080004]
[1642575249460,0.51241,3105.2,3104.8,2.73812826]
[1642575249863,0.51241,3105.2,3104.9,0.0096632]
[1642575250463,0.51241,3105.2,3105.0,2.73808463]
[1642575250665,0.51241,3105.2,3104.5,0.01193689]
[1642575250864,0.51241,3105.2,3105.1,0.00852635]
[1642575251063,0.51241,3105.2,3104.5,0.01193689]
[1642575251265,0.51241,3105.2,3104.7,0.01080004]
[1642575251465,0.51241,3105.2,3104.8,2.73812344]
[1642575251709,0.51241,3105.2,3104.9,2.73812344]
[1642575251907,0.50538799,3105.2,3105.0,2.73812344]
[1642575252110,0.50538799,3105.2,3105.0,0.00909477]
[1642575252308,0.50538799,3105.2,3105.1,0.00852635]
[1642575252514,0.50538799,3105.2,3104.2,0.01364216]
[1642575252712,0.80562,3105.1,3104.3,2.73819955]
[1642575253011,0.80562,3104.9,3104.4,0.01250531]
[1642575253211,0.80562,3104.9,3104.5,2.73819955]
[1642575253612,0.80562,3104.9,3104.6,0.01136847]
[1642575253911,0.80562,3104.9,3104.7,2.73819955]
[1642575254211,0.80562,3104.9,3104.8,2.71023162]
[1642575254413,0.80562,3104.9,3104.8,5.44843117]
[1642575254613,0.50742,3104.9,3104.8,5.44843117]
[1642575255023,1.6132149,3105.6,3104.8,9.13912434]
[1642575255217,1.6132149,3105.6,3104.9,2.73819955]
[1642575255468,1.6132149,3105.6,3105.0,2.15416516]
[1642575255668,1.6132149,3105.6,3105.1,2.73819955]
[1642575255869,1.6132149,3105.6,3105.3,1.36311385]
[1642575256173,1.6132149,3105.6,3105.4,5.08226514]
[1642575256371,1.6132149,3105.6,3105.5,11.6857673]
[1642575256570,1.49e-05,3105.6,3105.5,11.69201995]
[1642575256768,8.744,3106.6,3105.5,11.99201995]
[1642575256970,8.744,3106.6,3105.6,2.73819955]
[1642575257170,8.744,3106.6,3105.7,2.14868804]
[1642575257171,9.54915,3106.6,3105.7,2.14868804]
[1642575257373,9.54915,3106.6,3105.8,3.54334955]
[1642575257374,0.80515,3106.6,3105.8,3.54334955]
[1642575257675,0.80515,3106.6,3105.9,4.70179324]
[1642575257870,0.80515,3106.6,3105.9,3.12561102]
[1642575258070,0.80515,3106.6,3106.0,0.00341054]
[1642575258469,0.80515,3106.6,3106.0,2.74082814]
[1642575258671,0.80515,3106.6,3106.1,1.79613329]
[1642575258870,2.41789715,3106.6,3106.1,1.7989754]
[1642575259114,2.41789715,3106.6,3106.2,0.00227369]
[1642575259508,2.12779715,3106.6,3106.0,2.74082187]
[1642575259707,2.12779715,3106.6,3106.1,0.00284211]
[1642575259708,0.80528,3106.5,3106.1,0.00284211]
[1642575259910,0.80525,3106.4,3106.1,0.01674545]
[1642575260315,0.80525,3106.4,3106.2,0.00227369]
[1642575261516,1.61057,3106.4,3106.2,0.00227369]
[1642575263658,2.4159497,3106.4,3106.2,0.00227369]
[1642575264662,1.61057,3106.4,3106.2,0.00227369]
[1642575264964,1.61057,3106.4,3106.3,0.01389476]
[1642575265262,1.61057,3106.4,3106.3,0.01560003]
[1642575266464,4.41057,3106.4,3106.3,0.01560003]
[1642575266920,1.61057,3106.4,3106.3,0.01560003]
[1642575267121,0.80525,3106.4,3106.3,0.01560003]
[1642575268124,1.59735523,3106.1,3105.7,0.3]
[1642575268321,1.59735523,3106.1,3105.8,2.73755961]
[1642575268520,1.59735523,3106.1,3105.8,2.74040172]
[1642575269318,1.59735523,3106.1,3105.8,3.54561172]
[1642575269520,1.59735523,3106.1,3105.8,0.80805211]
[1642575269720,1.30565523,3106.1,3105.8,0.80805211]
[1642575269921,1.30565523,3106.1,3105.8,0.00284211]
[1642575270560,1.30565523,3106.1,3105.8,2.74037523]
[1642575270962,1.30565523,3106.1,3105.9,0.00227369]
[1642575271364,1.30565523,3106.1,3105.7,2.74094895]
[1642575272564,1.30565523,3106.1,3105.8,1.8165329]
[1642575272966,1.30565523,3106.1,3105.9,0.00227369]
[1642575273570,1.30565523,3106.1,3105.8,2.61592083]
[1642575273773,1.30565523,3106.1,3105.8,0.80521]
[1642575273970,1.30565523,3106.1,3105.9,0.00227369]
[1642575274812,1.01055523,3106.1,3105.9,0.00227369]
[1642575275019,1.01055523,3106.1,3105.9,1.91734264]
[1642575275319,1.01055523,3106.1,3106.0,4.25170527]
[1642575275521,1.1609,3106.7,3106.0,6.11963607]
[1642575275719,5.50574,3106.9,3106.0,6.11963607]
[1642575275720,5.50574,3106.9,3106.2,0.8051]
[1642575275924,0.00113685,3106.5,3106.2,0.8051]
[1642575276122,0.00113685,3106.5,3106.3,1.84898891]
[1642575276821,0.00113685,3106.5,3106.2,0.8051]
[1642575277421,0.00113685,3106.5,3106.3,1.82755802]
[1642575277621,0.00113685,3106.5,3106.3,3.2872115]
[1642575277864,0.00113685,3106.5,3106.4,8.2900862]
[1642575278062,0.00113685,3106.5,3106.4,9.0085862]
[1642575279062,0.00113685,3106.5,3106.4,2.8585862]
[1642575279268,0.00113685,3106.5,3106.3,4.17461278]
[1642575279467,0.00113685,3106.5,3106.4,4.95]
[1642575279866,3.73559195,3107.2,3106.3,1.75965348]
[1642575280068,0.80513,3107.0,3106.3,1.75965348]
[1642575280266,0.80513,3107.0,3106.3,0.3]
[1642575280667,0.80513,3107.0,3106.2,0.13819997]
[1642575280867,1.61028,3107.0,3106.2,0.13819997]
[1642575281068,1.61028,3107.0,3106.3,0.00113684]
[1642575281712,1.61029,3106.9,3106.3,0.00113684]
[1642575281911,0.80524,3106.8,3106.3,0.00113684]
[1642575282111,0.80525,3106.6,3106.3,0.00113684]
[1642575284916,0.51405,3106.6,3106.3,0.00113684]
[1642575289514,0.80529,3106.4,3105.7,2.74210718]
[1642575289715,0.8053,3106.2,3105.7,0.00454739]
[1642575289916,0.8053,3106.2,3105.8,0.00397896]
[1642575290116,0.5044,3106.2,3105.7,0.00454739]
[1642575290318,0.5044,3106.2,3105.4,0.00625266]
[1642575290517,1.30976,3106.2,3105.5,2.73763598]
[1642575290817,1.30976,3106.2,3105.6,0.00511581]
[1642575290818,0.8053,3106.0,3105.6,0.00511581]
[1642575291415,0.8053,3106.0,3105.4,0.00625266]